bitfinex/quotes_BTCUSD_20251015
["timestamp","ask_amount","ask_price","bid_price","bid_amount"]
[1760524470303,4.45541844,112680.0,112670.0,0.00014976]
[1760524470494,4.83042943,112680.0,112670.0,0.00014976]
[1760524474785,4.83042943,112680.0,112670.0,0.1776593]
[1760524475604,4.83042943,112680.0,112670.0,0.00014976]
[1760524475845,4.83042943,112680.0,112670.0,0.1776593]
[1760524477675,4.45541844,112680.0,112670.0,0.1776593]
[1760524477898,4.83042943,112680.0,112670.0,0.1776593]
[1760524479285,4.83042943,112680.0,112670.0,0.00014976]
[1760524480279,4.83042943,112680.0,112670.0,0.1776593]
[1760524482042,4.83042943,112680.0,112670.0,0.00014976]
[1760524485775,4.45541844,112680.0,112670.0,0.00014976]
[1760524486085,4.83042943,112680.0,112670.0,0.00014976]
[1760524488829,4.45541844,112680.0,112670.0,0.00014976]
[1760524489257,4.83042943,112680.0,112670.0,0.00014976]
[1760524489880,4.83042943,112680.0,112670.0,0.1776593]
[1760524490853,4.45541844,112680.0,112670.0,0.1776593]
[1760524491261,4.83042943,112680.0,112670.0,0.1776593]
[1760524492147,0.01112908,112680.0,112670.0,0.1776593]
[1760524492547,4.014995,112680.0,112670.0,0.1776593]
[1760524492962,4.014995,112680.0,112670.0,0.2892593]
[1760524493199,4.014995,112680.0,112670.0,0.1776593]
[1760524493420,4.014995,112680.0,112670.0,0.2892593]
[1760524493624,0.17749378,112680.0,112670.0,0.2892593]
[1760524494023,0.61017027,112690.0,112670.0,0.2892593]
[1760524494217,4.014995,112680.0,112670.0,0.2902593]
[1760524494366,0.17749378,112680.0,112670.0,0.1786593]
[1760524494565,0.61017027,112690.0,112670.0,0.1786593]
[1760524494772,4.014995,112680.0,112670.0,0.2892593]
[1760524495016,4.014995,112680.0,112670.0,0.1776593]
[1760524495237,4.014995,112680.0,112670.0,0.2892593]
[1760524495640,4.014995,112680.0,112670.0,0.1776593]
[1760524495840,4.014995,112680.0,112670.0,0.2892593]
[1760524496085,4.014995,112680.0,112670.0,0.1776593]
[1760524496532,4.014995,112680.0,112670.0,0.2892593]
[1760524496979,4.014995,112680.0,112670.0,0.2902593]
[1760524497436,4.014995,112680.0,112670.0,0.1786593]
[1760524497844,4.014995,112680.0,112670.0,0.2902593]
[1760524499711,4.014995,112680.0,112670.0,0.1786593]
[1760524500001,4.014995,112680.0,112670.0,0.2902593]
[1760524500273,4.014995,112680.0,112670.0,0.1786593]
[1760524500477,4.014995,112680.0,112670.0,0.2902593]
[1760524504396,4.014995,112680.0,112670.0,0.1786593]
[1760524504640,0.62122726,112690.0,112680.0,0.17749378]
[1760524504641,0.05767886,112690.0,112680.0,0.17749378]
[1760524504796,0.03098207,112690.0,112680.0,0.28909378]
[1760524507436,0.03098207,112690.0,112680.0,0.66386601]
[1760524507858,0.03098207,112690.0,112680.0,0.66486601]
[1760524508258,0.03098207,112690.0,112680.0,0.29009378]
[1760524508662,4.57823528,112700.0,112690.0,0.17747803]
[1760524509684,4.20346305,112700.0,112690.0,0.17747803]
[1760524509836,4.57823528,112700.0,112690.0,0.17847803]
[1760524511487,4.95300751,112700.0,112690.0,0.001]
[1760524511836,4.95415863,112700.0,112690.0,0.001]
[1760524512282,4.98085214,112700.0,112690.0,0.001]
[1760524513341,5.32085214,112700.0,112690.0,0.001]
[1760524513541,5.69562437,112700.0,112690.0,0.001]
[1760524513741,5.71219031,112700.0,112690.0,0.001]
[1760524513942,5.81015553,112700.0,112690.0,0.001]
[1760524514166,5.72047345,112700.0,112690.0,0.001]
[1760524514393,5.72047345,112700.0,112670.0,0.00014976]
[1760524514394,0.17749378,112680.0,112670.0,0.00014976]
[1760524514601,0.92703824,112680.0,112670.0,0.00014976]
[1760524515049,4.94203324,112680.0,112670.0,0.00014976]
[1760524515301,4.96873074,112680.0,112670.0,0.00014976]
[1760524515823,4.79123696,112680.0,112670.0,0.1776593]
[1760524516230,4.79123696,112680.0,112670.0,0.1786593]
[1760524518612,5.13123696,112680.0,112670.0,0.1786593]
[1760524520050,4.3816925,112680.0,112670.0,0.1786593]
[1760524520398,5.13123696,112680.0,112670.0,0.1786593]
[1760524521228,4.75646473,112680.0,112670.0,0.1786593]
[1760524521434,4.3816925,112680.0,112670.0,0.1786593]
[1760524521661,4.75646473,112680.0,112670.0,0.1786593]
[1760524523265,0.3666975,112680.0,112670.0,0.1786593]
[1760524523500,0.0266975,112680.0,112670.0,0.1786593]
[1760524523714,0.0266975,112680.0,112670.0,0.2902193]
[1760524523919,0.0266975,112680.0,112670.0,0.1786593]
[1760524524124,0.0266975,112680.0,112670.0,0.2902193]
[1760524524323,0.40146973,112680.0,112670.0,0.2902193]
[1760524524733,0.40146973,112680.0,112670.0,0.1786593]
[1760524524936,0.40146973,112680.0,112670.0,0.2902193]
[1760524525142,0.40146973,112680.0,112670.0,0.1786593]
[1760524525348,0.40146973,112680.0,112670.0,0.2902193]
[1760524526184,0.0266975,112680.0,112670.0,0.1786593]
[1760524526391,0.20419128,112680.0,112670.0,0.1786593]
[1760524526606,0.57896351,112680.0,112670.0,0.2902193]
[1760524527006,0.40146973,112680.0,112670.0,0.2902193]
[1760524527214,0.0266975,112680.0,112670.0,0.2902193]
[1760524528669,0.40146973,112680.0,112670.0,0.2902193]
[1760524529538,0.40146973,112680.0,112670.0,0.1786593]
[1760524529810,0.40146973,112680.0,112670.0,0.2902193]
[1760524530579,0.0266975,112680.0,112670.0,0.1786593]
[1760524530780,0.40146973,112680.0,112670.0,0.1786593]
[1760524530958,0.40146973,112680.0,112670.0,0.2902193]
[1760524531299,0.40146973,112680.0,112670.0,0.1786593]
[1760524531512,0.40146973,112680.0,112670.0,0.2902193]
[1760524531951,0.16991047,112680.0,112670.0,0.2902193]
[1760524532741,0.34740425,112680.0,112670.0,0.2902193]
[1760524533091,0.37477223,112680.0,112670.0,0.2902193]
[1760524533296,0.54475163,112690.0,112670.0,0.2902193]
[1760524533502,0.00057561,112690.0,112680.0,0.17749378]
[1760524533965,0.00057561,112690.0,112680.0,0.55226601]
[1760524534327,0.00057561,112690.0,112680.0,0.17749378]
[1760524534754,0.00057561,112690.0,112680.0,0.55226601]
[1760524538006,0.00057561,112690.0,112680.0,0.55326601]
[1760524539387,0.00057561,112690.0,112680.0,0.57309061]
[1760524539598,0.00057561,112690.0,112680.0,0.68465061]
[1760524540163,0.00057561,112690.0,112680.0,0.57309061]
[1760524540835,0.00057561,112690.0,112680.0,1.09560512]
[1760524541031,0.00057561,112690.0,112680.0,1.01073552]
[1760524541462,0.00057561,112690.0,112680.0,1.12229552]
[1760524541665,0.00057561,112690.0,112680.0,1.01073552]
[1760524542026,0.00057561,112690.0,112680.0,1.12229552]
[1760524542437,0.00057561,112690.0,112680.0,1.01073552]
[1760524542665,0.00057561,112690.0,112680.0,1.12229552]
[1760524543224,0.00057561,112690.0,112680.0,1.49706775]
[1760524543428,1e-08,112690.0,112680.0,0.60119106]
[1760524543635,1e-08,112690.0,112680.0,1.83706775]
[1760524543876,1e-08,112690.0,112680.0,0.71275106]
[1760524544075,1e-08,112690.0,112680.0,1.83706775]
[1760524544275,1e-08,112690.0,112680.0,1.86277537]
[1760524544481,1e-08,112690.0,112680.0,1.95146549]
[1760524544947,1e-08,112690.0,112680.0,1.95246549]
[1760524545367,1e-08,112690.0,112680.0,1.81519787]
[1760524545549,1e-08,112690.0,112680.0,1.92675787]
[1760524547614,1e-08,112690.0,112680.0,1.99184502]
[1760524549610,1e-08,112690.0,112680.0,0.86752833]
[1760524549812,1e-08,112690.0,112680.0,1.99184502]
[1760524551557,1e-08,112690.0,112680.0,1.88028502]
[1760524551814,1e-08,112690.0,112680.0,1.99180502]
[1760524553683,1e-08,112690.0,112680.0,1.61703279]
[1760524558184,1e-08,112690.0,112680.0,0.69088118]
[1760524558360,1e-08,112690.0,112680.0,1.55194564]
[1760524558769,1e-08,112690.0,112680.0,1.44042564]
[1760524558914,1e-08,112690.0,112680.0,1.55194564]
[1760524559544,1e-08,112690.0,112680.0,1.44042564]
[1760524560391,1e-08,112690.0,112680.0,1.55194564]
[1760524560877,1e-08,112690.0,112680.0,0.80240118]
[1760524561096,1e-08,112690.0,112680.0,1.44042564]
[1760524561326,1e-08,112690.0,112680.0,1.55194564]
[1760524561699,1e-08,112690.0,112680.0,1.44042564]
[1760524561934,1e-08,112690.0,112680.0,1.55194564]
[1760524562340,1e-08,112690.0,112680.0,1.44042564]
[1760524562511,1e-08,112690.0,112680.0,1.55194564]
[1760524564710,1e-08,112690.0,112680.0,1.44042564]
[1760524565108,1e-08,112690.0,112680.0,0.80240118]
[1760524565311,1e-08,112690.0,112680.0,0.60119106]
[1760524565483,1e-08,112690.0,112680.0,1.35073552]
[1760524565680,1e-08,112690.0,112680.0,1.46225552]
[1760524566139,1e-08,112690.0,112680.0,1.46125552]
[1760524566545,1e-08,112690.0,112680.0,1.46325552]
[1760524567434,1e-08,112690.0,112680.0,1.08939067]
[1760524568001,1e-08,112690.0,112680.0,1.35389067]
[1760524570006,1e-08,112690.0,112680.0,1.33406607]
[1760524572288,1e-08,112690.0,112680.0,1.30737567]
[1760524574304,1e-08,112690.0,112680.0,0.93269606]
[1760524574707,1e-08,112690.0,112680.0,0.93169606]
[1760524575111,1e-08,112690.0,112680.0,0.93069606]
[1760524575445,1e-08,112690.0,112680.0,0.21567606]
[1760524575600,1e-08,112690.0,112680.0,0.32719606]
[1760524576204,1e-08,112690.0,112680.0,0.32619606]
[1760524576675,1e-08,112690.0,112680.0,0.32719606]
[1760524576828,1e-08,112690.0,112680.0,0.32619606]
[1760524577234,1e-08,112690.0,112680.0,0.32719606]
[1760524587288,1e-08,112690.0,112680.0,0.29101378]
[1760524598264,4.19245824,112700.0,112690.0,0.17747803]
[1760524598436,0.17746324,112700.0,112690.0,0.17747803]
[1760524599271,0.21433233,112700.0,112690.0,0.17747803]
[1760524599943,0.21433233,112700.0,112690.0,0.17847803]
[1760524603921,0.21490786,112700.0,112690.0,0.17847803]
[1760524609933,0.2149069,112700.0,112690.0,0.17847803]
[1760524611967,0.03744462,112700.0,112690.0,0.17847803]
[1760524614528,4.014995,112710.0,112700.0,0.17746228]
[1760524614727,4.5671355,112710.0,112700.0,0.17746228]
[1760524615989,4.57600782,112710.0,112700.0,0.17746228]
[1760524618860,4.57600782,112710.0,112690.0,0.17747803]
[1760524619055,4.014995,112700.0,112690.0,0.17747803]
[1760524620306,0.17746228,112700.0,112690.0,0.17847803]
[1760524629425,0.55224679,112700.0,112690.0,0.17847803]
[1760524630269,0.62979798,112700.0,112690.0,0.001]
[1760524630474,4.9420263,112700.0,112690.0,0.001]
[1760524630675,5.29869243,112700.0,112690.0,0.001]
[1760524630877,5.72770796,112700.0,112690.0,0.001]
[1760524631166,5.71104183,112700.0,112690.0,0.001]
[1760524631367,5.81737212,112700.0,112690.0,0.001]
[1760524632291,0.17749378,112680.0,112670.0,0.00014976]
[1760524632490,4.9420578,112680.0,112670.0,0.00014976]
[1760524633428,5.2820578,112680.0,112670.0,0.00014976]
[1760524633633,5.65684231,112680.0,112670.0,0.00014976]
[1760524634262,5.2820578,112680.0,112670.0,0.00014976]
[1760524634455,5.65684231,112680.0,112670.0,0.00014976]
[1760524634865,5.67076326,112680.0,112670.0,0.00014976]
[1760524635117,5.65684231,112680.0,112670.0,0.00014976]
[1760524635255,5.74652439,112680.0,112670.0,0.00014976]
[1760524635660,5.74652439,112680.0,112670.0,0.00225028]
[1760524636021,5.65684231,112680.0,112670.0,0.00225028]
[1760524636184,5.2820578,112680.0,112670.0,0.00225028]
[1760524636913,5.2820578,112680.0,112670.0,0.00087077]
[1760524639225,5.29597909,112680.0,112670.0,0.00087077]
[1760524639475,5.32268329,112680.0,112670.0,0.00087077]
[1760524639873,5.6974678,112680.0,112670.0,0.00087077]
[1760524642172,5.6974678,112680.0,112670.0,0.0007846]
[1760524645277,5.78714988,112680.0,112670.0,0.0007846]
[1760524645486,6.16193439,112680.0,112670.0,0.0007846]
[1760524645698,4.014995,112630.0,112620.0,0.17757689]
[1760524645910,4.014995,112630.0,112620.0,0.17762676]
[1760524646126,4.19256758,112630.0,112620.0,0.17762676]
[1760524646334,0.17756463,112640.0,112620.0,0.17762676]
[1760524646567,0.37478451,112630.0,112620.0,0.17762676]
[1760524646979,0.55235709,112630.0,112620.0,0.17762676]
[1760524647187,0.37478451,112630.0,112620.0,0.17762676]
[1760524647604,0.37478451,112630.0,112620.0,0.17862676]
[1760524647817,4.014995,112630.0,112620.0,0.17862676]
[1760524648019,0.37478451,112630.0,112620.0,0.17862676]
[1760524648224,0.37478451,112630.0,112620.0,0.17962676]
[1760524648443,4.69255963,112640.0,112630.0,0.17757258]
[1760524648644,4.56734414,112640.0,112630.0,0.17757258]
[1760524648845,4.014995,112630.0,112620.0,0.17962676]
[1760524649485,4.014995,112630.0,112620.0,0.17862676]
[1760524649992,4.19256758,112630.0,112620.0,0.17862676]
[1760524650193,0.17757258,112630.0,112620.0,0.17862676]
[1760524650602,0.17757258,112630.0,112620.0,0.17762676]
[1760524651382,0.17757258,112630.0,112620.0,0.18150682]
[1760524651998,0.17757258,112630.0,112620.0,0.18250682]
[1760524652193,0.17757258,112630.0,112620.0,0.18251828]
[1760524652371,0.55235709,112630.0,112620.0,0.00492993]
[1760524652862,5.03181868,112630.0,112620.0,0.00492993]
[1760524653087,5.2821366,112630.0,112620.0,0.00492993]
[1760524653310,5.31021041,112630.0,112620.0,0.00492993]
[1760524653524,5.32675137,112630.0,112620.0,0.00392993]
[1760524654392,5.29867756,112630.0,112620.0,0.00392993]
[1760524654800,5.29967756,112630.0,112620.0,0.00292993]
[1760524655006,5.29967756,112630.0,112620.0,0.00392993]
[1760524655436,5.29967756,112630.0,112620.0,0.00292993]
[1760524656769,5.3263917,112630.0,112620.0,0.00292993]
[1760524657178,5.34544736,112630.0,112620.0,0.00292993]
[1760524657373,5.35937357,112630.0,112620.0,0.00292993]
[1760524657760,5.12131833,112630.0,112620.0,0.00292993]
[1760524657967,5.29889091,112630.0,112620.0,0.00292993]
[1760524658173,5.31795176,112630.0,112620.0,0.00292993]
[1760524662484,4.56838274,112630.0,112620.0,0.00292993]
[1760524662706,4.94316725,112630.0,112620.0,0.18051828]
[1760524662928,4.92924104,112630.0,112620.0,0.00292993]
[1760524663151,4.53539568,112630.0,112620.0,0.00292993]
[1760524663386,4.92926927,112630.0,112620.0,0.00292993]
[1760524663620,4.55348476,112630.0,112620.0,0.00292993]
[1760524663858,4.92926927,112630.0,112620.0,0.00292993]
[1760524664080,4.91018019,112630.0,112620.0,0.00292993]
[1760524664311,4.90918019,112630.0,112620.0,0.00292993]
[1760524665194,4.9282731,112630.0,112620.0,0.00292993]
[1760524666057,4.90918019,112630.0,112620.0,0.00292993]
[1760524666257,4.92827495,112630.0,112620.0,0.00292993]
[1760524666665,4.03591786,112630.0,112620.0,0.18051828]
[1760524666873,0.0432551,112630.0,112620.0,0.29207828]
[1760524668020,0.01654096,112630.0,112620.0,0.66686279]
[1760524668330,0.23959479,112640.0,112630.0,0.17757258]
[1760524668569,0.25617719,112640.0,112630.0,0.17757258]
[1760524668754,0.6309617,112640.0,112630.0,0.17757258]
[1760524669612,0.6319617,112640.0,112630.0,0.17757258]
[1760524670008,0.6319617,112640.0,112630.0,0.28913258]
[1760524670746,4.98031421,112640.0,112620.0,0.17763822]
[1760524670904,0.55235709,112630.0,112620.0,4.987e-05]
[1760524671103,0.56893949,112630.0,112620.0,0.11160987]
[1760524671688,4.88250749,112630.0,112620.0,4.987e-05]
[1760524672802,4.9016057,112630.0,112620.0,4.987e-05]
[1760524673507,4.92831699,112630.0,112620.0,4.987e-05]
[1760524674867,4.92831699,112630.0,112620.0,0.17763822]
[1760524675069,4.90921878,112630.0,112620.0,0.17763822]
[1760524675225,4.90921878,112630.0,112620.0,0.18051828]
[1760524675425,4.90921878,112630.0,112620.0,0.00292993]
[1760524675609,4.92833695,112630.0,112620.0,0.00292993]
[1760524677204,4.90921878,112630.0,112620.0,0.00292993]
[1760524681965,4.92835435,112630.0,112620.0,0.00292993]
[1760524682381,5.30313886,112630.0,112620.0,0.00292993]
[1760524682777,5.31147388,112630.0,112620.0,0.00292993]
[1760524684034,5.31147388,112630.0,112590.0,0.0002]
[1760524684035,0.51761989,112600.0,112590.0,0.0002]
[1760524684238,5.25736852,112600.0,112590.0,0.00069927]
[1760524684923,5.30321734,112600.0,112590.0,0.00069927]
[1760524685350,4.90930546,112600.0,112590.0,0.00069927]
[1760524685968,5.28408997,112600.0,112590.0,0.00069927]
[1760524687891,4.53449873,112600.0,112590.0,0.00069927]
[1760524688081,5.28406775,112600.0,112590.0,0.00069927]
[1760524689241,4.90928324,112600.0,112590.0,0.00069927]
[1760524690475,5.28406775,112600.0,112590.0,0.00242814]
[1760524690682,4.62418079,112600.0,112590.0,0.00242814]
[1760524690879,5.74853432,112600.0,112590.0,0.00242814]
[1760524691057,5.39284284,112600.0,112590.0,0.00242814]
[1760524691455,5.01889971,112600.0,112590.0,0.00242814]
[1760524691658,4.64327382,112600.0,112590.0,0.00242814]
[1760524691846,5.01989971,112600.0,112590.0,0.00242814]
[1760524692542,4.64427382,112600.0,112590.0,0.00242814]
[1760524692679,5.00080668,112600.0,112590.0,0.00242814]
[1760524692880,4.91112462,112600.0,112590.0,0.00242814]
[1760524694517,4.93019142,112600.0,112590.0,0.00242814]
[1760524694762,4.94412301,112600.0,112590.0,0.00242814]
[1760524695010,4.70516426,112600.0,112590.0,0.00242814]
[1760524695213,4.88278415,112600.0,112590.0,0.00242814]
[1760524695419,5.25841004,112600.0,112590.0,0.00242814]
[1760524695625,4.88278415,112600.0,112590.0,0.00242814]
[1760524696043,4.89302814,112600.0,112590.0,0.00242814]
[1760524696254,5.26865403,112600.0,112590.0,0.00242814]
[1760524696685,0.17763566,112590.0,112580.0,0.00028]
[1760524696899,4.91954336,112590.0,112580.0,0.00028]
[1760524697110,5.25954336,112590.0,112580.0,0.00028]
[1760524697316,5.34922544,112590.0,112580.0,0.00028]
[1760524697975,4.59797366,112590.0,112580.0,0.00028]
[1760524698193,4.50829158,112590.0,112580.0,0.00028]
[1760524698398,5.69040099,112590.0,112580.0,1e-08]
[1760524698814,5.3157751,112590.0,112580.0,1e-08]
[1760524699228,5.69140099,112590.0,112580.0,1e-08]
[1760524699430,5.69240099,112590.0,112580.0,1e-08]
[1760524699567,5.78208307,112590.0,112580.0,1e-08]
[1760524699771,5.78108307,112590.0,112580.0,1e-08]
[1760524699991,5.78208307,112590.0,112580.0,1e-08]
[1760524700396,5.78408307,112590.0,112580.0,1e-08]
[1760524701724,5.40845718,112590.0,112580.0,1e-08]
[1760524701929,5.3722749,112590.0,112580.0,1e-08]
[1760524702328,5.28259282,112590.0,112580.0,0.00057643]
[1760524702749,5.28059282,112590.0,112580.0,0.00057643]
[1760524702953,5.28053416,112590.0,112580.0,0.00057643]
[1760524703152,5.2604847,112590.0,112580.0,0.00057643]
[1760524703358,5.27952862,112590.0,112580.0,0.00057643]
[1760524703615,5.3692107,112590.0,112580.0,0.00057643]
[1760524703815,5.3702107,112590.0,112580.0,0.00057643]
[1760524704020,5.3692107,112590.0,112580.0,0.00057643]
[1760524704228,5.3702107,112590.0,112580.0,0.00057643]
[1760524706677,5.35116678,112590.0,112580.0,0.00057643]
[1760524707548,5.33463605,112590.0,112580.0,0.00057643]
[1760524708066,5.37024642,112590.0,112580.0,0.00057643]
[1760524709005,5.2722159,112590.0,112580.0,0.00057643]
[1760524709207,5.29129787,112590.0,112580.0,0.00057643]
[1760524710810,4.88587522,112590.0,112580.0,0.00057643]
[1760524712580,5.28061157,112590.0,112580.0,0.00057643]
[1760524712780,5.28065169,112590.0,112580.0,0.00057643]
[1760524712982,4.9050258,112590.0,112580.0,0.00057643]
[1760524713402,4.52939991,112590.0,112580.0,0.00057643]
[1760524713612,4.9050258,112590.0,112580.0,0.00057643]
[1760524714043,4.18939991,112590.0,112580.0,0.17822787]
[1760524714256,4.17028945,112590.0,112580.0,0.17822787]
[1760524714469,4.51028945,112590.0,112580.0,0.17822787]
[1760524714896,4.51028945,112590.0,112580.0,0.00057643]
[1760524715114,4.50928945,112590.0,112580.0,0.17822787]
[1760524716148,4.50828945,112590.0,112580.0,0.17822787]
[1760524717177,4.50828945,112590.0,112580.0,0.00057643]
[1760524717795,4.50828945,112590.0,112580.0,0.17822787]
[1760524718001,4.50828945,112590.0,112580.0,0.00057643]
[1760524718207,4.50828945,112590.0,112580.0,0.17822787]
[1760524718410,4.50828945,112590.0,112580.0,0.00057643]
[1760524720499,5.16395249,112590.0,112580.0,0.00057643]
[1760524727274,5.14736523,112590.0,112580.0,0.00057643]
[1760524728336,4.49170219,112590.0,112580.0,0.17822787]
[1760524728543,0.34049853,112590.0,112580.0,0.17822787]
[1760524728690,0.51813419,112590.0,112580.0,0.17822787]
[1760524728888,1.17379723,112590.0,112580.0,0.00057643]
[1760524729114,1.17379723,112590.0,112580.0,0.17822787]
[1760524729316,0.34049853,112590.0,112580.0,0.17822787]
[1760524729515,0.00049853,112590.0,112580.0,0.32605015]
[1760524730093,0.00049853,112590.0,112580.0,0.21441015]
[1760524730740,0.00049853,112590.0,112580.0,0.32609015]
[1760524731120,0.00049853,112590.0,112580.0,0.21441015]
[1760524731461,0.00049853,112590.0,112580.0,0.32609015]
[1760524735048,0.00049853,112590.0,112580.0,0.21441015]
[1760524735250,0.00049853,112590.0,112580.0,0.32605015]
[1760524740467,0.00049853,112590.0,112580.0,0.21441015]
[1760524740756,0.00049853,112590.0,112580.0,0.32605015]
[1760524741074,0.00049853,112590.0,112580.0,0.21441015]
[1760524741278,0.00049853,112590.0,112580.0,0.32605015]
[1760524741638,0.00049853,112590.0,112580.0,0.21441015]
[1760524742128,0.00049853,112590.0,112580.0,0.32605015]
[1760524742306,0.00049853,112590.0,112580.0,0.21441015]
[1760524742524,0.00049853,112590.0,112580.0,0.32605015]
[1760524744293,0.00049853,112590.0,112580.0,0.21441015]
[1760524744496,0.00049853,112590.0,112580.0,0.32601015]
[1760524745077,0.00049853,112590.0,112580.0,0.21441015]
[1760524745500,0.00049853,112590.0,112580.0,0.32601015]
[1760524746409,0.00049853,112590.0,112580.0,0.21441015]
[1760524746570,0.00049853,112590.0,112580.0,0.32601015]
[1760524747090,0.00049853,112590.0,112580.0,0.21441015]
[1760524747309,0.00049853,112590.0,112580.0,0.32601015]
[1760524748322,0.00049853,112590.0,112580.0,0.21441015]
[1760524748523,0.00049853,112590.0,112580.0,0.32601015]
[1760524749116,0.00049853,112590.0,112580.0,0.21441015]
[1760524749324,0.00049853,112590.0,112580.0,0.32601015]
[1760524750064,0.00049853,112590.0,112580.0,0.21441015]
[1760524750415,0.00049853,112590.0,112580.0,0.32601015]
[1760524751792,0.00049853,112590.0,112580.0,0.21441015]
[1760524751992,0.00049853,112590.0,112580.0,0.32601015]
[1760524752344,0.00049853,112590.0,112580.0,0.21441015]
[1760524752924,0.00049853,112590.0,112580.0,0.32601015]
[1760524753157,0.00049853,112590.0,112580.0,0.32597015]
[1760524754034,0.00049853,112590.0,112580.0,0.21441015]
[1760524754282,0.00049853,112590.0,112580.0,0.32597015]
[1760524754514,0.00049853,112590.0,112580.0,0.21441015]
[1760524755151,0.00049853,112590.0,112580.0,0.32597015]
[1760524755473,0.00049853,112590.0,112580.0,0.21441015]
[1760524755694,0.00049853,112590.0,112580.0,0.32597015]
[1760524756105,1e-08,112590.0,112580.0,0.55441015]
[1760524756301,1e-08,112590.0,112580.0,0.66597015]
[1760524756807,1e-08,112590.0,112580.0,0.55441015]
[1760524757210,1e-08,112590.0,112580.0,0.66597015]
[1760524757412,1e-08,112590.0,112580.0,0.75566027]
[1760524757836,1e-08,112590.0,112580.0,0.64410027]
[1760524758075,1e-08,112590.0,112580.0,0.75566027]
[1760524758275,0.40910944,112630.0,112620.0,0.17758835]
[1760524758430,0.18645155,112630.0,112620.0,0.17773813]
[1760524758630,0.56184293,112630.0,112620.0,0.00014978]
[1760524758834,0.56241901,112630.0,112620.0,0.00014978]
[1760524759430,0.56241901,112630.0,112620.0,0.11170978]
[1760524760413,0.56241901,112630.0,112620.0,0.00014978]
[1760524760600,0.56241901,112630.0,112620.0,0.11170978]
[1760524760841,0.56241901,112630.0,112620.0,0.00014978]
[1760524761047,0.56241901,112630.0,112620.0,0.11170978]
[1760524762908,0.56241901,112630.0,112620.0,0.11270978]
[1760524763326,0.56241901,112630.0,112620.0,0.00114978]
[1760524763525,0.56241901,112630.0,112620.0,0.11270978]
[1760524763933,0.56241901,112630.0,112620.0,0.29029813]
[1760524764518,0.56241866,112630.0,112620.0,0.29029813]
[1760524764721,0.56241866,112630.0,112620.0,0.17873813]
[1760524764928,0.00057608,112630.0,112620.0,0.29029813]
[1760524765131,0.17814866,112630.0,112620.0,0.29029813]
[1760524765740,0.17814866,112630.0,112620.0,0.17873813]
[1760524766133,0.17814866,112630.0,112620.0,0.29029813]
[1760524766720,0.55354004,112630.0,112620.0,0.00114978]
[1760524766864,0.55354004,112630.0,112620.0,0.11270978]
[1760524767074,0.55354004,112630.0,112620.0,0.00114978]
[1760524767296,0.55354004,112630.0,112620.0,0.11270978]
[1760524770183,0.55354004,112630.0,112620.0,0.29029813]
[1760524770316,0.55354004,112630.0,112620.0,0.11270978]
[1760524770516,0.55354004,112630.0,112620.0,0.29029813]
[1760524770930,0.55354004,112630.0,112620.0,0.11270978]
[1760524772291,0.55354004,112630.0,112620.0,0.00114978]
[1760524772487,0.55354004,112630.0,112620.0,0.11270978]
[1760524773314,0.55354004,112630.0,112620.0,0.29029813]
[1760524774286,0.55354004,112630.0,112620.0,0.17873813]
[1760524774567,0.17814866,112630.0,112620.0,0.29029813]
[1760524774776,0.55354004,112630.0,112620.0,0.29029813]
[1760524774985,0.55354004,112630.0,112620.0,0.17873813]
[1760524775211,0.55354004,112630.0,112620.0,0.29029813]
[1760524776570,0.55354004,112630.0,112620.0,0.11270978]
[1760524776883,0.55354004,112630.0,112620.0,0.17873813]
[1760524777231,0.55354004,112630.0,112620.0,0.29029813]
[1760524777439,0.55281008,112630.0,112620.0,0.11270978]
[1760524777637,0.55281008,112630.0,112620.0,0.29029813]
[1760524777881,0.17757258,112630.0,112620.0,0.29029813]
[1760524778224,0.55281008,112630.0,112620.0,0.29029813]
[1760524778425,0.55281008,112630.0,112620.0,0.17873813]
[1760524778630,0.55281008,112630.0,112620.0,0.29029813]
[1760524778842,3.973568,112630.0,112620.0,0.17873813]
[1760524779041,0.3752375,112650.0,112640.0,0.17755681]
[1760524779233,0.3752375,112650.0,112640.0,0.11156]
[1760524779234,0.55277855,112650.0,112640.0,0.11156]
[1760524779441,0.55277855,112650.0,112640.0,0.28911681]
[1760524779442,0.34,112650.0,112640.0,0.28911681]
[1760524779656,0.51754105,112650.0,112640.0,0.11156]
[1760524779870,0.89277855,112650.0,112640.0,0.11156]
[1760524781110,0.89277855,112650.0,112640.0,0.11256]
[1760524781524,0.89277855,112650.0,112640.0,0.11356]
[1760524782159,0.89277855,112650.0,112640.0,0.002]
[1760524782366,0.51754105,112650.0,112640.0,0.002]
[1760524782577,0.89277855,112650.0,112640.0,0.002]
[1760524782787,0.89277855,112650.0,112640.0,0.11356]
[1760524782998,0.9241759,112650.0,112640.0,0.11356]
[1760524783223,0.9241759,112650.0,112640.0,0.002]
[1760524783619,0.9241759,112650.0,112640.0,0.11356]
[1760524784442,5.2729814,112650.0,112640.0,0.002]
[1760524784654,5.27413328,112650.0,112640.0,0.002]
[1760524785282,4.89889578,112650.0,112640.0,0.001]
[1760524785694,0.17755681,112640.0,112630.0,0.28909245]
[1760524785905,0.55279431,112640.0,112630.0,0.28909245]
[1760524786110,0.5533703,112640.0,112630.0,0.11152]
[1760524786520,0.1781328,112640.0,112630.0,0.11152]
[1760524786735,0.5533703,112640.0,112630.0,0.11152]
[1760524787439,0.5533703,112640.0,112630.0,0.11252]
[1760524787997,0.5533703,112640.0,112630.0,0.11352]
[1760524788196,0.5533703,112640.0,112630.0,0.002]
[1760524788409,0.9286078,112640.0,112630.0,0.002]
[1760524788619,0.9286078,112640.0,112630.0,0.11352]
[1760524789438,0.5533703,112640.0,112630.0,0.11352]
[1760524790015,0.5533703,112640.0,112630.0,0.29109258]
[1760524790219,0.5533703,112640.0,112630.0,0.17957258]
[1760524790541,0.5533703,112640.0,112630.0,0.29109258]
[1760524791281,0.5533703,112640.0,112630.0,0.17957258]
[1760524791499,0.5533703,112640.0,112630.0,0.29109258]
[1760524792368,0.5533703,112640.0,112630.0,0.17957258]
[1760524792592,0.00057599,112640.0,112630.0,0.29109258]
[1760524792808,0.00057599,112640.0,112630.0,0.70251236]
[1760524793020,0.00057599,112640.0,112630.0,0.59099236]
[1760524793240,0.00057599,112640.0,112630.0,0.32727486]
[1760524793907,0.00057599,112640.0,112630.0,0.21575486]
[1760524794120,0.00057599,112640.0,112630.0,0.32727486]
[1760524794333,0.00057599,112640.0,112630.0,0.70251236]
[1760524794802,0.00057599,112640.0,112630.0,0.59099236]
[1760524795013,0.00057599,112640.0,112630.0,0.70251236]
[1760524797240,0.00057599,112640.0,112630.0,1.07774986]
[1760524797696,1e-08,112640.0,112630.0,1.90045748]
[1760524797944,1e-08,112640.0,112630.0,1.52521998]
[1760524798177,1e-08,112640.0,112630.0,1.55191701]
[1760524798440,1e-08,112640.0,112630.0,1.92515451]
[1760524798676,1e-08,112640.0,112630.0,1.95207752]
[1760524798894,1e-08,112640.0,112630.0,1.92615451]